[Event "*** Titled Tuesday Blitz"]
[Site "Chess.com"]
[Date "2021.04.27"]
[Round "3"]
[White "NoGalloNoParty"]
[Black "Sammed_Shete"]
[Result "0-1"]
[WhiteElo "2359"]
[BlackElo "2643"]
[TimeControl "180+1"]
[EndTime "10:27:18 PDT"]
[Termination "Sammed_Shete won by resignation"]

1. d4 {[%clk 0:02:57.4]} 1... Nf6 {[%clk 0:02:59.6]} 2. c4 {[%clk 0:02:53.4]}
2... e6 {[%clk 0:02:59.4]} 3. g3 {[%clk 0:02:53.4]} 3... d5 {[%clk 0:02:59.2]}
4. Bg2 {[%clk 0:02:53.3]} 4... dxc4 {[%clk 0:02:58.3]} 5. Nf3 {[%clk 0:02:52.7]}
5... c6 {[%clk 0:02:58]} 6. O-O {[%clk 0:02:45.6]} 6... Nbd7 {[%clk 0:02:42]} 7.
Qc2 {[%clk 0:02:20.2]} 7... b5 {[%clk 0:02:35.9]} 8. b3 {[%clk 0:02:14.4]} 8...
cxb3 {[%clk 0:02:23.8]} 9. Qxc6 {[%clk 0:01:58.3]} 9... Rb8 {[%clk 0:02:23.1]}
10. axb3 {[%clk 0:01:57.4]} 10... Bb7 {[%clk 0:02:21.4]} 11. Qc2 {[%clk
0:01:55.7]} 11... a6 {[%clk 0:02:14.9]} 12. Nbd2 {[%clk 0:01:40.1]} 12... Rc8
{[%clk 0:02:11.9]} 13. Qd3 {[%clk 0:01:37.7]} 13... Nd5 {[%clk 0:01:58.3]} 14.
Ba3 {[%clk 0:01:09.6]} 14... Bxa3 {[%clk 0:01:52.4]} 15. Rxa3 {[%clk 0:01:09.2]}
15... Rc3 {[%clk 0:01:47.5]} 16. Qb1 {[%clk 0:01:07.8]} 16... O-O {[%clk
0:01:44.6]} 17. Ne4 {[%clk 0:01:06.9]} 17... Rc7 {[%clk 0:01:37.6]} 18. Nd6
{[%clk 0:00:50.1]} 18... N7f6 {[%clk 0:01:26]} 19. Nxb7 {[%clk 0:00:47.3]} 19...
Rxb7 {[%clk 0:01:26.3]} 20. e4 {[%clk 0:00:47.6]} 20... Nc3 {[%clk 0:01:24]} 21.
Qd3 {[%clk 0:00:42.2]} 21... Nfxe4 {[%clk 0:01:12]} 22. Rxa6 {[%clk 0:00:36.2]}
22... Rd7 {[%clk 0:01:09.1]} 23. Re1 {[%clk 0:00:32.1]} 23... Nc5 {[%clk
0:01:07.8]} 24. Qxc3 {[%clk 0:00:30.2]} 24... Nxa6 {[%clk 0:01:07.7]} 25. Qc6
{[%clk 0:00:23.7]} 25... Rd6 {[%clk 0:01:03.4]} 26. Qxb5 {[%clk 0:00:22.9]}
26... Qb8 {[%clk 0:01:03.9]} 27. Qd3 {[%clk 0:00:19.5]} 27... Nb4 {[%clk
0:01:02.1]} 28. Qe4 {[%clk 0:00:18]} 28... h6 {[%clk 0:00:56.1]} 29. Ne5 {[%clk
0:00:15.4]} 29... Nd5 {[%clk 0:00:54]} 30. Rb1 {[%clk 0:00:12.2]} 30... Nc3
{[%clk 0:00:51.9]} 0-1

[Event "*** Titled Tuesday Blitz"]
[Site "Chess.com"]
[Date "2021.04.27"]
[Round "3"]
[White "Gusarov91"]
[Black "KubaGepard"]
[Result "1-0"]
[WhiteElo "2613"]
[BlackElo "2407"]
[TimeControl "180+1"]
[EndTime "10:27:18 PDT"]
[Termination "Gusarov91 won by resignation"]

1. d4 {[%clk 0:03:00.9]} 1... d5 {[%clk 0:02:59.9]} 2. Nf3 {[%clk 0:03:01.2]}
2... Nf6 {[%clk 0:03:00.3]} 3. c4 {[%clk 0:03:01.9]} 3... dxc4 {[%clk
0:03:00.9]} 4. e3 {[%clk 0:03:02]} 4... e6 {[%clk 0:03:00.8]} 5. Bxc4 {[%clk
0:03:02.6]} 5... c5 {[%clk 0:03:01.5]} 6. O-O {[%clk 0:03:03.1]} 6... a6 {[%clk
0:03:02.1]} 7. a4 {[%clk 0:03:02.9]} 7... Nc6 {[%clk 0:03:02]} 8. Nc3 {[%clk
0:03:02.8]} 8... Be7 {[%clk 0:03:02.5]} 9. Qe2 {[%clk 0:02:54.8]} 9... Qc7
{[%clk 0:03:02.6]} 10. Rd1 {[%clk 0:02:51.6]} 10... O-O {[%clk 0:03:02.5]} 11.
h3 {[%clk 0:02:51.8]} 11... b6 {[%clk 0:03:02.5]} 12. d5 {[%clk 0:02:51.5]}
12... exd5 {[%clk 0:03:02.4]} 13. Nxd5 {[%clk 0:02:52.2]} 13... Nxd5 {[%clk
0:03:02.7]} 14. Bxd5 {[%clk 0:02:53.1]} 14... Bb7 {[%clk 0:03:02.4]} 15. e4
{[%clk 0:02:53.6]} 15... Rad8 {[%clk 0:02:58.5]} 16. Be3 {[%clk 0:02:53.1]}
16... Bf6 {[%clk 0:02:43.8]} 17. Rac1 {[%clk 0:02:49.5]} 17... Qe7 {[%clk
0:02:38.2]} 18. e5 {[%clk 0:02:26.7]} 18... Nxe5 {[%clk 0:02:29.7]} 19. Bxb7
{[%clk 0:02:26.7]} 19... Qxb7 {[%clk 0:02:26.8]} 20. Nxe5 {[%clk 0:02:27]} 20...
Bxe5 {[%clk 0:02:25.7]} 21. Bxc5 {[%clk 0:02:27.1]} 21... Rfe8 {[%clk
0:02:21.4]} 22. Rxd8 {[%clk 0:02:24.1]} 22... Rxd8 {[%clk 0:02:19.4]} 23. Qxe5
{[%clk 0:02:24.1]} 23... bxc5 {[%clk 0:02:19.8]} 24. Rxc5 {[%clk 0:02:22.5]}
24... h6 {[%clk 0:02:18.4]} 25. Rc7 {[%clk 0:02:14.8]} 25... Qb3 {[%clk
0:02:12.5]} 26. a5 {[%clk 0:02:04.6]} 26... Rb8 {[%clk 0:01:53.3]} 27. Ra7
{[%clk 0:01:51.7]} 27... Qb5 {[%clk 0:01:22]} 28. Qxb5 {[%clk 0:01:47.8]} 28...
Rxb5 {[%clk 0:01:22.9]} 29. Ra8+ {[%clk 0:01:47.3]} 29... Kh7 {[%clk 0:01:21.7]}
30. Rxa6 {[%clk 0:01:48.2]} 30... Rxb2 {[%clk 0:01:21.9]} 31. Rb6 {[%clk
0:01:42.6]} 31... Ra2 {[%clk 0:01:21]} 32. a6 {[%clk 0:01:42.6]} 32... g5 {[%clk
0:01:20.8]} 33. g4 {[%clk 0:01:42.8]} 33... Kg7 {[%clk 0:01:16.9]} 34. Kg2
{[%clk 0:01:43.3]} 34... Ra3 {[%clk 0:01:16.2]} 35. Kf1 {[%clk 0:01:42.7]} 35...
Rxh3 {[%clk 0:01:12.5]} 36. Rb7 {[%clk 0:01:36]} 36... Ra3 {[%clk 0:01:11.9]}
37. a7 {[%clk 0:01:36.5]} 37... Kg6 {[%clk 0:01:09]} 38. Ke2 {[%clk 0:01:35.1]}
38... h5 {[%clk 0:01:06.2]} 39. gxh5+ {[%clk 0:01:35.2]} 39... Kxh5 {[%clk
0:01:03.8]} 40. Rxf7 {[%clk 0:01:35.3]} 40... Kg6 {[%clk 0:01:02.8]} 41. Rb7
{[%clk 0:01:34.6]} 41... Kf5 {[%clk 0:00:59]} 42. Kd2 {[%clk 0:01:35.1]} 42...
Kf4 {[%clk 0:00:57.8]} 43. Rf7+ {[%clk 0:01:34.9]} 43... Ke4 {[%clk 0:00:56.2]}
44. Kc2 {[%clk 0:01:35.2]} 44... Kd5 {[%clk 0:00:51.1]} 45. Kb2 {[%clk
0:01:35.3]} 45... Ra6 {[%clk 0:00:48.3]} 46. Kb3 {[%clk 0:01:34.7]} 46... Ke6
{[%clk 0:00:38.9]} 47. Rg7 {[%clk 0:01:32.2]} 47... Kf6 {[%clk 0:00:37.8]} 48.
Rc7 {[%clk 0:01:31.7]} 48... Ra1 {[%clk 0:00:33]} 49. Kb4 {[%clk 0:01:31.6]}
49... Rb1+ {[%clk 0:00:31.5]} 50. Ka5 {[%clk 0:01:32]} 50... Ra1+ {[%clk
0:00:26.2]} 51. Kb6 {[%clk 0:01:32.1]} 51... g4 {[%clk 0:00:25.1]} 52. Kb7
{[%clk 0:01:31.6]} 52... Rb1+ {[%clk 0:00:24.6]} 53. Kc8 {[%clk 0:01:32]} 1-0

[Event "*** Titled Tuesday Blitz"]
[Site "Chess.com"]
[Date "2021.04.27"]
[Round "3"]
[White "ljuks68"]
[Black "Supernotar"]
[Result "1/2-1/2"]
[WhiteElo "2461"]
[BlackElo "2738"]
[TimeControl "180+1"]
[EndTime "10:27:19 PDT"]
[Termination "Game drawn by repetition"]

1. e4 {[%clk 0:03:00.9]} 1... c6 {[%clk 0:03:00.2]} 2. d4 {[%clk 0:03:00.1]}
2... d5 {[%clk 0:03:00.4]} 3. e5 {[%clk 0:03:00.6]} 3... Bf5 {[%clk 0:02:59.5]}
4. Nd2 {[%clk 0:03:00.6]} 4... e6 {[%clk 0:02:59.3]} 5. Nb3 {[%clk 0:03:00.9]}
5... Nd7 {[%clk 0:02:59.4]} 6. Nf3 {[%clk 0:03:01.3]} 6... h6 {[%clk 0:02:59.2]}
7. Be2 {[%clk 0:03:01.5]} 7... Ne7 {[%clk 0:02:58.7]} 8. O-O {[%clk 0:03:01.8]}
8... Bh7 {[%clk 0:02:57.5]} 9. a4 {[%clk 0:03:01.6]} 9... Nf5 {[%clk 0:02:57.3]}
10. a5 {[%clk 0:02:59.2]} 10... Be7 {[%clk 0:02:57.1]} 11. Bd2 {[%clk
0:02:52.5]} 11... O-O {[%clk 0:02:56.3]} 12. g4 {[%clk 0:02:52.2]} 12... Nh4
{[%clk 0:02:55.2]} 13. Nxh4 {[%clk 0:02:52.1]} 13... Bxh4 {[%clk 0:02:56.1]} 14.
f4 {[%clk 0:02:52.1]} 14... Be4 {[%clk 0:02:56]} 15. Be3 {[%clk 0:02:39.6]}
15... f6 {[%clk 0:02:41.9]} 16. Nd2 {[%clk 0:02:36.8]} 16... f5 {[%clk
0:02:27.1]} 17. Nxe4 {[%clk 0:02:28]} 17... fxe4 {[%clk 0:02:24.9]} 18. f5
{[%clk 0:02:18.9]} 18... Qe7 {[%clk 0:02:16.1]} 19. Qd2 {[%clk 0:02:15.9]} 19...
Rf7 {[%clk 0:02:11.5]} 20. fxe6 {[%clk 0:02:05.3]} 20... Qxe6 {[%clk 0:02:05.2]}
21. Rxf7 {[%clk 0:02:04.6]} 21... Qxf7 {[%clk 0:02:04.3]} 22. Rf1 {[%clk
0:02:02.1]} 22... Qe7 {[%clk 0:02:03.8]} 23. c4 {[%clk 0:01:12.9]} 23... Rf8
{[%clk 0:01:56.5]} 24. Rxf8+ {[%clk 0:01:11.9]} 24... Nxf8 {[%clk 0:01:57.4]}
25. Bd1 {[%clk 0:01:04.7]} 25... Ne6 {[%clk 0:01:52.7]} 26. cxd5 {[%clk
0:01:04.2]} 26... cxd5 {[%clk 0:01:53.6]} 27. Bb3 {[%clk 0:01:04]} 27... Qd7
{[%clk 0:01:50.3]} 28. h3 {[%clk 0:00:57.1]} 28... Bg5 {[%clk 0:01:46.5]} 29.
Bxg5 {[%clk 0:00:54.8]} 29... Nxg5 {[%clk 0:01:46.3]} 30. Kg2 {[%clk 0:00:50.9]}
30... Ne6 {[%clk 0:01:44.9]} 31. Qe3 {[%clk 0:00:38.7]} 31... g5 {[%clk
0:01:40.4]} 32. Kf2 {[%clk 0:00:32.7]} 32... Qb5 {[%clk 0:01:36.1]} 33. Qc3
{[%clk 0:00:29.7]} 33... Nf4 {[%clk 0:01:29.7]} 34. Qc8+ {[%clk 0:00:27.4]}
34... Kg7 {[%clk 0:01:26.2]} 35. Qc7+ {[%clk 0:00:27.3]} 35... Kg8 {[%clk
0:01:25.3]} 36. Qd8+ {[%clk 0:00:26.2]} 36... Kg7 {[%clk 0:01:21.1]} 37. Qf6+
{[%clk 0:00:26]} 37... Kh7 {[%clk 0:01:15.5]} 38. Qf7+ {[%clk 0:00:24]} 38...
Kh8 {[%clk 0:01:14.3]} 39. Qf8+ {[%clk 0:00:21.2]} 39... Kh7 {[%clk 0:01:05.3]}
40. Qf7+ {[%clk 0:00:20.9]} 40... Kh8 {[%clk 0:01:04.3]} 41. Qf8+ {[%clk
0:00:20.8]} 41... Kh7 {[%clk 0:01:04.3]} 42. Qf7+ {[%clk 0:00:20.8]} 1/2-1/2

[Event "*** Titled Tuesday Blitz"]
[Site "Chess.com"]
[Date "2021.04.27"]
[Round "3"]
[White "The_filthy"]
[Black "secretsuperstar7"]
[Result "1-0"]
[WhiteElo "2411"]
[BlackElo "2223"]
[TimeControl "180+1"]
[EndTime "10:27:19 PDT"]
[Termination "The_filthy won on time"]

1. e4 {[%clk 0:03:00.9]} 1... c5 {[%clk 0:02:59.8]} 2. Nf3 {[%clk 0:03:01.1]}
2... d6 {[%clk 0:02:59.8]} 3. d4 {[%clk 0:03:01.6]} 3... cxd4 {[%clk 0:03:00.4]}
4. Nxd4 {[%clk 0:03:02.5]} 4... Nf6 {[%clk 0:03:00.5]} 5. Nc3 {[%clk 0:03:03]}
5... Nc6 {[%clk 0:02:58]} 6. f3 {[%clk 0:03:02.2]} 6... e5 {[%clk 0:02:46.1]} 7.
Nb3 {[%clk 0:03:01.8]} 7... a5 {[%clk 0:02:45]} 8. a4 {[%clk 0:02:59.2]} 8...
Be7 {[%clk 0:02:40.9]} 9. Bc4 {[%clk 0:02:58.8]} 9... O-O {[%clk 0:02:37.5]} 10.
Be3 {[%clk 0:02:58.8]} 10... Be6 {[%clk 0:02:27.2]} 11. Qe2 {[%clk 0:02:55.1]}
11... d5 {[%clk 0:02:03.5]} 12. exd5 {[%clk 0:02:53]} 12... Nxd5 {[%clk
0:02:03]} 13. Nxd5 {[%clk 0:02:47]} 13... Bxd5 {[%clk 0:02:02.7]} 14. Rd1 {[%clk
0:02:40]} 14... Bxc4 {[%clk 0:02:02.7]} 15. Qxc4 {[%clk 0:02:40.2]} 15... Qc8
{[%clk 0:01:58.1]} 16. O-O {[%clk 0:02:38.7]} 16... Nb4 {[%clk 0:01:40]} 17.
Qxc8 {[%clk 0:02:36.5]} 17... Raxc8 {[%clk 0:01:30.6]} 18. Rd7 {[%clk
0:02:34.8]} 18... Nxc2 {[%clk 0:01:00.6]} 19. Bf2 {[%clk 0:02:33.6]} 19... Bb4
{[%clk 0:00:56.5]} 20. Rxb7 {[%clk 0:02:31.7]} 20... h6 {[%clk 0:00:43.7]} 21.
Rd1 {[%clk 0:02:24.2]} 21... Rfd8 {[%clk 0:00:39.9]} 22. Rdd7 {[%clk 0:02:17.2]}
22... Rxd7 {[%clk 0:00:26.7]} 23. Rxd7 {[%clk 0:02:18.1]} 23... Kf8 {[%clk
0:00:24.6]} 24. g3 {[%clk 0:02:16.1]} 24... Ke8 {[%clk 0:00:21.9]} 25. Rb7
{[%clk 0:02:14.5]} 25... Rd8 {[%clk 0:00:20.2]} 26. Rb5 {[%clk 0:02:06.1]} 26...
Rd1+ {[%clk 0:00:19.4]} 27. Kg2 {[%clk 0:02:06.3]} 27... f6 {[%clk 0:00:16.8]}
28. Nxa5 {[%clk 0:02:02.5]} 28... Bd2 {[%clk 0:00:08]} 29. Nc4 {[%clk
0:01:54.9]} 29... Nd4 {[%clk 0:00:05.8]} 30. Rd5 {[%clk 0:01:42.5]} 30... Bb4
{[%clk 0:00:02.1]} 31. a5 {[%clk 0:01:24.5]} 31... Ke7 {[%clk 0:00:01.2]} 32. a6
{[%clk 0:01:21.1]} 32... Ke6 {[%clk 0:00:01.1]} 33. Rd8 {[%clk 0:01:14.9]} 33...
Ra1 {[%clk 0:00:01.2]} 34. Bxd4 {[%clk 0:01:00.8]} 1-0

[Event "*** Titled Tuesday Blitz"]
[Site "Chess.com"]
[Date "2021.04.27"]
[Round "3"]
[White "dodorox"]
[Black "Chernov_Alexander_A"]
[Result "0-1"]
[WhiteElo "2124"]
[BlackElo "2318"]
[TimeControl "180+1"]
[EndTime "10:27:19 PDT"]
[Termination "Chernov_Alexander_A won on time"]

1. d4 {[%clk 0:03:00.9]} 1... Nf6 {[%clk 0:02:59.1]} 2. c4 {[%clk 0:03:01.3]}
2... e6 {[%clk 0:02:58.9]} 3. Nc3 {[%clk 0:03:01.3]} 3... Bb4 {[%clk 0:02:58.4]}
4. Bd2 {[%clk 0:03:01.4]} 4... b6 {[%clk 0:02:57.6]} 5. e3 {[%clk 0:03:00.7]}
5... Bb7 {[%clk 0:02:56.8]} 6. Nf3 {[%clk 0:03:00.7]} 6... O-O {[%clk
0:02:55.2]} 7. Rc1 {[%clk 0:03:00.8]} 7... d6 {[%clk 0:02:53.5]} 8. Bd3 {[%clk
0:02:59.4]} 8... Bxc3 {[%clk 0:02:51.7]} 9. Bxc3 {[%clk 0:02:57.9]} 9... Ne4
{[%clk 0:02:51.5]} 10. O-O {[%clk 0:02:46.8]} 10... Nd7 {[%clk 0:02:50.7]} 11.
b4 {[%clk 0:02:23.9]} 11... f5 {[%clk 0:02:46.9]} 12. Bb2 {[%clk 0:02:22.3]}
12... Rf6 {[%clk 0:02:30.4]} 13. Nd2 {[%clk 0:02:19.1]} 13... Rh6 {[%clk
0:02:17.8]} 14. f3 {[%clk 0:02:07.8]} 14... Qh4 {[%clk 0:01:53.9]} 15. fxe4
{[%clk 0:01:27.6]} 15... fxe4 {[%clk 0:01:53.3]} 16. Bxe4 {[%clk 0:00:35.7]}
16... Bxe4 {[%clk 0:01:49.7]} 17. Nxe4 {[%clk 0:00:34.8]} 17... Qxe4 {[%clk
0:01:48.7]} 18. Qf3 {[%clk 0:00:30.7]} 18... Nf6 {[%clk 0:01:40.5]} 19. Qxe4
{[%clk 0:00:25.2]} 19... Nxe4 {[%clk 0:01:39.6]} 20. Rf4 {[%clk 0:00:25.4]}
20... Nf6 {[%clk 0:01:33]} 21. d5 {[%clk 0:00:22.5]} 21... e5 {[%clk 0:01:31.5]}
22. Rf5 {[%clk 0:00:17.5]} 22... a5 {[%clk 0:01:30.7]} 23. a3 {[%clk 0:00:10.9]}
23... axb4 {[%clk 0:01:29.2]} 24. axb4 {[%clk 0:00:11.3]} 24... Ra4 {[%clk
0:01:19.4]} 25. Bc3 {[%clk 0:00:05.8]} 25... Rh4 {[%clk 0:01:17.5]} 26. c5
{[%clk 0:00:05.3]} 26... Rc4 {[%clk 0:01:07]} 27. cxd6 {[%clk 0:00:03.8]} 27...
cxd6 {[%clk 0:01:05.8]} 28. Rff1 {[%clk 0:00:04]} 28... Nxd5 {[%clk 0:01:01.5]}
29. Bd2 {[%clk 0:00:02.3]} 29... b5 {[%clk 0:00:56]} 0-1

[Event "*** Titled Tuesday Blitz"]
[Site "Chess.com"]
[Date "2021.04.27"]
[Round "3"]
[White "Shahinyan_ChessMood"]
[Black "Warre"]
[Result "1-0"]
[WhiteElo "2805"]
[BlackElo "2461"]
[TimeControl "180+1"]
[EndTime "10:27:23 PDT"]
[Termination "Shahinyan_ChessMood won by resignation"]

1. e4 {[%clk 0:02:55.8]} 1... e5 {[%clk 0:02:59.6]} 2. Nf3 {[%clk 0:02:53.4]}
2... Nc6 {[%clk 0:03:00.1]} 3. d4 {[%clk 0:02:54.1]} 3... exd4 {[%clk
0:03:00.1]} 4. Nxd4 {[%clk 0:02:55]} 4... Nf6 {[%clk 0:03:00.3]} 5. Nc3 {[%clk
0:02:54.8]} 5... Bb4 {[%clk 0:03:00]} 6. Nxc6 {[%clk 0:02:55.4]} 6... bxc6
{[%clk 0:03:00.9]} 7. Bd3 {[%clk 0:02:55.8]} 7... O-O {[%clk 0:03:01.5]} 8. O-O
{[%clk 0:02:55]} 8... d5 {[%clk 0:03:01.8]} 9. Bd2 {[%clk 0:02:55.3]} 9... Bxc3
{[%clk 0:02:48.4]} 10. Bxc3 {[%clk 0:02:56.2]} 10... dxe4 {[%clk 0:02:46.9]} 11.
Bxf6 {[%clk 0:02:53.8]} 11... Qxf6 {[%clk 0:02:46.7]} 12. Bxe4 {[%clk
0:02:54.7]} 12... Qxb2 {[%clk 0:02:44]} 13. Bxc6 {[%clk 0:02:54]} 13... Rb8
{[%clk 0:02:40.1]} 14. Rb1 {[%clk 0:02:54.1]} 14... Qxb1 {[%clk 0:02:39.2]} 15.
Qxb1 {[%clk 0:02:55]} 15... Rxb1 {[%clk 0:02:39.4]} 16. Rxb1 {[%clk 0:02:55.9]}
16... Be6 {[%clk 0:02:36.8]} 17. Rb7 {[%clk 0:02:52.5]} 17... Rd8 {[%clk
0:02:27.1]} 18. h3 {[%clk 0:02:42.7]} 18... Bxa2 {[%clk 0:02:24.7]} 19. Rxa7
{[%clk 0:02:40.8]} 19... Bb1 {[%clk 0:02:22.9]} 20. c4 {[%clk 0:02:35.4]} 20...
Bd3 {[%clk 0:01:47.4]} 21. c5 {[%clk 0:02:33.8]} 21... Bf5 {[%clk 0:01:35.7]}
22. Rxc7 {[%clk 0:02:31.2]} 22... Rc8 {[%clk 0:01:31.5]} 23. Rxc8+ {[%clk
0:02:25]} 23... Bxc8 {[%clk 0:01:32]} 24. Kf1 {[%clk 0:02:17]} 24... Kf8 {[%clk
0:01:31.3]} 25. Ke2 {[%clk 0:02:17.6]} 25... Ke7 {[%clk 0:01:30.2]} 26. Ke3
{[%clk 0:02:18.2]} 26... f6 {[%clk 0:01:23.6]} 27. Kd4 {[%clk 0:02:18.1]} 27...
g5 {[%clk 0:01:21.3]} 28. Bf3 {[%clk 0:02:06.2]} 28... Be6 {[%clk 0:01:07.1]}
29. Bg4 {[%clk 0:01:52]} 29... Bf7 {[%clk 0:01:05.3]} 30. Bf5 {[%clk 0:01:51.1]}
30... h6 {[%clk 0:01:02.6]} 31. g3 {[%clk 0:01:50.9]} 31... Kd8 {[%clk
0:01:01.3]} 32. h4 {[%clk 0:01:50.8]} 32... Kc7 {[%clk 0:01:00.6]} 33. Be4
{[%clk 0:01:49.4]} 33... Be6 {[%clk 0:00:59.2]} 34. Bd5 {[%clk 0:01:49.7]} 34...
Bd7 {[%clk 0:00:58.7]} 35. Ke4 {[%clk 0:01:49.4]} 35... Kd8 {[%clk 0:00:58.4]}
36. Bg8 {[%clk 0:01:43]} 36... Ke7 {[%clk 0:00:57.9]} 37. Kd5 {[%clk 0:01:43.6]}
37... f5 {[%clk 0:00:51.3]} 38. c6 {[%clk 0:01:43]} 38... Bc8 {[%clk 0:00:51.6]}
39. Kc5 {[%clk 0:01:43.5]} 39... f4 {[%clk 0:00:50.3]} 40. hxg5 {[%clk
0:01:36.8]} 40... hxg5 {[%clk 0:00:39.8]} 41. gxf4 {[%clk 0:01:35.4]} 41... gxf4
{[%clk 0:00:40]} 42. Kb6 {[%clk 0:01:22.1]} 42... Kd6 {[%clk 0:00:36.2]} 43. c7
{[%clk 0:01:21.9]} 43... Kd7 {[%clk 0:00:21]} 44. Bd5 {[%clk 0:01:19.6]} 1-0

[Event "*** Titled Tuesday Blitz"]
[Site "Chess.com"]
[Date "2021.04.27"]
[Round "3"]
[White "alexgo05"]
[Black "AryanTari"]
[Result "0-1"]
[WhiteElo "2470"]
[BlackElo "2887"]
[TimeControl "180+1"]
[EndTime "10:27:29 PDT"]
[Termination "AryanTari won by resignation"]

1. e4 {[%clk 0:03:00.9]} 1... c6 {[%clk 0:02:59.4]} 2. Nc3 {[%clk 0:02:53.8]}
2... d5 {[%clk 0:03:00.3]} 3. Nf3 {[%clk 0:02:53.8]} 3... Nf6 {[%clk 0:02:53.3]}
4. e5 {[%clk 0:02:52.4]} 4... Ne4 {[%clk 0:02:52.7]} 5. Ne2 {[%clk 0:02:52]}
5... Qb6 {[%clk 0:02:52.9]} 6. d4 {[%clk 0:02:51.2]} 6... e6 {[%clk 0:02:52.9]}
7. Ng3 {[%clk 0:02:50.3]} 7... c5 {[%clk 0:02:51.7]} 8. Bd3 {[%clk 0:02:50.4]}
8... Nxg3 {[%clk 0:02:50.9]} 9. fxg3 {[%clk 0:02:51.3]} 9... Nc6 {[%clk
0:02:49.5]} 10. O-O {[%clk 0:02:47.2]} 10... h6 {[%clk 0:02:48.9]} 11. Kh1
{[%clk 0:02:41]} 11... Bd7 {[%clk 0:02:46.3]} 12. dxc5 {[%clk 0:02:38.7]} 12...
Bxc5 {[%clk 0:02:45.7]} 13. a3 {[%clk 0:02:39.6]} 13... a5 {[%clk 0:02:32.9]}
14. b3 {[%clk 0:02:27.4]} 14... O-O {[%clk 0:02:22]} 15. c3 {[%clk 0:01:51.9]}
15... f5 {[%clk 0:01:44.6]} 16. Bf4 {[%clk 0:01:28.6]} 16... Be7 {[%clk
0:01:24.3]} 17. Qd2 {[%clk 0:01:22.3]} 17... Be8 {[%clk 0:01:07.1]} 18. Bxh6
{[%clk 0:01:03]} 18... gxh6 {[%clk 0:01:06.9]} 19. Qxh6 {[%clk 0:01:03.9]} 19...
Bf7 {[%clk 0:00:31.3]} 20. Ng5 {[%clk 0:01:03.8]} 20... Bxg5 {[%clk 0:00:25.9]}
21. Qxg5+ {[%clk 0:01:04.7]} 21... Kh7 {[%clk 0:00:26.6]} 22. Rf4 {[%clk
0:01:03.9]} 22... Bg6 {[%clk 0:00:27.2]} 23. Rh4+ {[%clk 0:00:57.8]} 23... Kg7
{[%clk 0:00:27.7]} 24. Rh6 {[%clk 0:00:58]} 24... Nxe5 {[%clk 0:00:27.2]} 25.
Re1 {[%clk 0:00:48.9]} 25... Qd8 {[%clk 0:00:27.4]} 26. Qf4 {[%clk 0:00:15.6]}
26... Nxd3 {[%clk 0:00:23.2]} 27. Rxg6+ {[%clk 0:00:15.6]} 27... Kxg6 {[%clk
0:00:23.6]} 28. Rxe6+ {[%clk 0:00:16.1]} 28... Rf6 {[%clk 0:00:23.2]} 0-1

[Event "*** Titled Tuesday Blitz"]
[Site "Chess.com"]
[Date "2021.04.27"]
[Round "3"]
[White "FrenchMonster2002"]
[Black "Iskusnyh"]
[Result "0-1"]
[WhiteElo "2386"]
[BlackElo "2602"]
[TimeControl "180+1"]
[EndTime "10:27:29 PDT"]
[Termination "Iskusnyh won on time"]

1. e4 {[%clk 0:03:00.9]} 1... e6 {[%clk 0:02:59.2]} 2. d4 {[%clk 0:03:01.2]}
2... d5 {[%clk 0:02:59.9]} 3. Nc3 {[%clk 0:03:01.9]} 3... Nf6 {[%clk 0:02:59]}
4. e5 {[%clk 0:03:02.4]} 4... Nfd7 {[%clk 0:02:59.1]} 5. f4 {[%clk 0:03:03.2]}
5... c5 {[%clk 0:02:59.7]} 6. Nf3 {[%clk 0:03:04.1]} 6... Nc6 {[%clk 0:03:00]}
7. Be3 {[%clk 0:03:04.7]} 7... Rb8 {[%clk 0:03:00.2]} 8. Qd2 {[%clk 0:02:55.6]}
8... Qa5 {[%clk 0:02:59.9]} 9. Be2 {[%clk 0:02:36]} 9... b5 {[%clk 0:02:59.5]}
10. O-O {[%clk 0:02:32.4]} 10... b4 {[%clk 0:02:59.3]} 11. Nd1 {[%clk
0:02:31.6]} 11... Ba6 {[%clk 0:02:58.6]} 12. Bxa6 {[%clk 0:02:08.7]} 12... Qxa6
{[%clk 0:02:56.5]} 13. Nf2 {[%clk 0:02:03.8]} 13... cxd4 {[%clk 0:02:52.2]} 14.
Nxd4 {[%clk 0:02:03]} 14... Nxd4 {[%clk 0:02:51.4]} 15. Bxd4 {[%clk 0:02:03.9]}
15... Bc5 {[%clk 0:02:51.1]} 16. Bxc5 {[%clk 0:01:42.9]} 16... Nxc5 {[%clk
0:02:49.6]} 17. f5 {[%clk 0:01:43.8]} 17... Qb6 {[%clk 0:02:45.4]} 18. Kh1
{[%clk 0:01:39]} 18... exf5 {[%clk 0:02:39.5]} 19. Qxd5 {[%clk 0:01:34.9]} 19...
O-O {[%clk 0:02:39.1]} 20. Qf3 {[%clk 0:01:29.2]} 20... g6 {[%clk 0:02:33.5]}
21. Nh3 {[%clk 0:01:27]} 21... Rfe8 {[%clk 0:02:29.3]} 22. Rae1 {[%clk
0:01:26.1]} 22... Qb7 {[%clk 0:02:26.7]} 23. Qf4 {[%clk 0:01:16.8]} 23... Ne4
{[%clk 0:02:22.7]} 24. Ng5 {[%clk 0:01:06.8]} 24... Nxg5 {[%clk 0:02:17.2]} 25.
Qxg5 {[%clk 0:01:07.7]} 25... Qc7 {[%clk 0:02:10.9]} 26. Rxf5 {[%clk 0:00:51.7]}
26... Qxc2 {[%clk 0:02:09.9]} 27. Ref1 {[%clk 0:00:45.5]} 27... Rb7 {[%clk
0:02:05.6]} 28. R5f2 {[%clk 0:00:16.6]} 28... Qe4 {[%clk 0:02:02.3]} 29. Rf5
{[%clk 0:00:02.9]} 29... Rbe7 {[%clk 0:01:57.3]} 30. h4 {[%clk 0:00:03]} 30...
Rxe5 {[%clk 0:01:55.7]} 31. Rxe5 {[%clk 0:00:02.9]} 31... Qxe5 {[%clk
0:01:51.2]} 32. Qxe5 {[%clk 0:00:02.2]} 32... Rxe5 {[%clk 0:01:50.7]} 33. Rf4
{[%clk 0:00:03]} 33... a5 {[%clk 0:01:49.6]} 34. a3 {[%clk 0:00:02.8]} 34... Rb5
{[%clk 0:01:46.5]} 35. axb4 {[%clk 0:00:02.4]} 35... Rxb4 {[%clk 0:01:46.5]} 36.
Rxb4 {[%clk 0:00:02.1]} 36... axb4 {[%clk 0:01:46.6]} 37. Kg1 {[%clk 0:00:02.7]}
37... h5 {[%clk 0:01:39.6]} 38. Kf2 {[%clk 0:00:02.3]} 38... f6 {[%clk 0:01:39]}
39. Ke3 {[%clk 0:00:02.4]} 39... g5 {[%clk 0:01:39.4]} 40. hxg5 {[%clk
0:00:01.4]} 40... fxg5 {[%clk 0:01:39.6]} 41. Ke4 {[%clk 0:00:01.5]} 41... Kg7
{[%clk 0:01:39.5]} 42. Kf5 {[%clk 0:00:02]} 42... Kh6 {[%clk 0:01:39.6]} 43. g3
{[%clk 0:00:02.5]} 43... b3 {[%clk 0:01:39.1]} 44. Kf6 {[%clk 0:00:01.2]} 44...
h4 {[%clk 0:01:38.7]} 45. gxh4 {[%clk 0:00:01.2]} 45... gxh4 {[%clk 0:01:39]}
46. Ke5 {[%clk 0:00:02.1]} 46... h3 {[%clk 0:01:39.4]} 47. Kd4 {[%clk 0:00:03]}
47... h2 {[%clk 0:01:40]} 48. Kc3 {[%clk 0:00:03.9]} 48... h1=Q {[%clk
0:01:40.4]} 49. Kxb3 {[%clk 0:00:04.8]} 49... Qc1 {[%clk 0:01:40.4]} 0-1